fUSD/lending_fUSD_20260506
["ID","MTS","AMOUNT","RATE_DAILY","PERIOD"]
[421684245,1778040658000,-558.94410923,0.00041917,120]
[421684259,1778040658000,-182.80619076,0.00041917,120]
[421684328,1778040659000,-1560.0,0.00041918,120]
[421684331,1778040659000,-300.0,0.0004197,3]
[421684330,1778040659000,-298.218375,0.00041941,2]
[421684321,1778040659000,-524.29399432,0.00041917,120]
[421684327,1778040659000,-157.87638221,0.00041917,120]
[421684326,1778040659000,-2853.0478,0.00041917,120]
[421684323,1778040659000,-2852.96,0.00041917,120]
[421684325,1778040659000,-2852.96,0.00041917,120]
[421684324,1778040659000,-2852.96,0.00041917,120]
[421684320,1778040659000,-2852.96,0.00041917,120]
[421684332,1778040659000,-250.0,0.00041973,120]
[421684329,1778040659000,-250.0,0.00041918,120]
[421684333,1778040659000,-500.0,0.00041999,20]
[421684342,1778040659000,-500.0,0.00042,45]
[421684344,1778040659000,-166.74,0.00042,2]
[421684336,1778040659000,-186.0,0.00042,30]
[421684343,1778040659000,-500.0,0.00042,45]
[421684335,1778040659000,-500.0,0.00042,45]
[421684338,1778040659000,-500.0,0.00042,45]
[421684339,1778040659000,-500.0,0.00042,45]
[421684340,1778040659000,-500.0,0.00042,45]
[421684337,1778040659000,-300.2,0.00042,30]
[421684341,1778040659000,-500.0,0.00042,45]
[421684345,1778040659000,-3819.48820206,0.00042,120]
[421684353,1778040659000,-370.41,0.00042033,120]
[421684346,1778040659000,-971.15852387,0.00042,120]
[421684319,1778040659000,-500.0,0.00041917,120]
[421684334,1778040659000,-50000.0,0.00042,120]
[421684318,1778040659000,-2852.96,0.00041917,120]
[421684347,1778040659000,-50000.0,0.00042,120]
[421684317,1778040659000,-2852.96,0.00041917,120]
[421684293,1778040659000,-1157.26,0.00041917,120]
[421684297,1778040659000,-1157.26,0.00041917,120]
[421684291,1778040659000,-1157.26,0.00041917,120]
[421684292,1778040659000,-1157.26,0.00041917,120]
[421684290,1778040659000,-2852.96,0.00041917,120]
[421684296,1778040659000,-2852.96,0.00041917,120]
[421684295,1778040659000,-1157.26,0.00041917,120]
[421684294,1778040659000,-2852.96,0.00041917,120]
[421684298,1778040659000,-500.0,0.00041917,2]
[421684306,1778040659000,-1157.26,0.00041917,120]
[421684309,1778040659000,-201.26253076,0.00041917,120]
[421684303,1778040659000,-209.91459436,0.00041917,120]
[421684301,1778040659000,-2852.96,0.00041917,120]
[421684299,1778040659000,-2852.96,0.00041917,120]
[421684304,1778040659000,-2852.96,0.00041917,120]
[421684310,1778040659000,-1157.26,0.00041917,120]
[421684308,1778040659000,-2852.96,0.00041917,120]
[421684300,1778040659000,-1157.26,0.00041917,120]
[421684307,1778040659000,-1157.26,0.00041917,120]
[421684302,1778040659000,-1157.26,0.00041917,120]
[421684305,1778040659000,-1157.26,0.00041917,120]
[421684311,1778040659000,-2852.96,0.00041917,120]
[421684322,1778040659000,-2852.96,0.00041917,120]
[421684315,1778040659000,-2852.96,0.00041917,120]
[421684313,1778040659000,-2852.96,0.00041917,120]
[421684314,1778040659000,-2852.96,0.00041917,120]
[421684312,1778040659000,-1157.31249873,0.00041917,120]
[421684316,1778040659000,-211.32801174,0.00041917,120]
[421684349,1778040659000,-1260.10021763,0.00042,30]
[421684409,1778040659000,-677340.7370578,0.00042368,2]
[421684348,1778040659000,-500.0,0.00042,45]
[421684384,1778040659000,-190.07893127,0.00042278,120]
[421684383,1778040659000,-150.0,0.00042278,120]
[421684385,1778040659000,-212.0,0.00042278,120]
[421684388,1778040659000,-151.0,0.000423,120]
[421684386,1778040659000,-700.0,0.00042284,120]
[421684389,1778040659000,-153.0,0.000423,120]
[421684387,1778040659000,-500.0,0.00042296,14]
[421684392,1778040659000,-1081.07438873,0.000423,120]
[421684391,1778040659000,-185287.0,0.000423,60]
[421684390,1778040659000,-377.92666018,0.000423,30]
[421684393,1778040659000,-232.88856075,0.000423,70]
[421684394,1778040659000,-13290.85464699,0.000423,70]
[421684406,1778040659000,-408.0,0.00042361,2]
[421684408,1778040659000,-7729.2542618,0.00042368,2]
[421684407,1778040659000,-23974.344846,0.00042368,2]
[421684395,1778040659000,-20065.40488805,0.00042322,120]
[421684397,1778040659000,-150.0,0.00042325,120]
[421684398,1778040659000,-150.0,0.00042325,120]
[421684402,1778040659000,-1142.1,0.00042347,120]
[421684401,1778040659000,-299.20200052,0.00042325,120]
[421684400,1778040659000,-150.0,0.00042325,120]
[421684403,1778040659000,-170540.9469492,0.00042347,2]
[421684399,1778040659000,-150.0,0.00042325,120]
[421684405,1778040659000,-168.0,0.0004236,120]
[421684404,1778040659000,-275.63605625,0.00042358,7]
[421684410,1778040659000,-151.0,0.00042368,30]
[421684350,1778040659000,-500.0,0.00042,120]
[421684382,1778040659000,-350.0,0.0004227,6]
[421684375,1778040659000,-350.0,0.00042213,5]
[421684396,1778040659000,-150.0,0.00042325,120]
[421684379,1778040659000,-161.0,0.0004226,120]
[421684354,1778040659000,-151.0,0.00042043,120]
[421684378,1778040659000,-500.0,0.00042255,15]
[421684355,1778040659000,-296.24228,0.00042043,120]
[421684352,1778040659000,-517.0,0.00042,120]
[421684356,1778040659000,-314.097762,0.00042043,120]
[421684351,1778040659000,-303.28158847,0.00042,120]
[421684357,1778040659000,-314.097762,0.00042043,120]
[421684360,1778040659000,-200.0,0.00042062,120]
[421684358,1778040659000,-314.097762,0.00042043,120]
[421684364,1778040659000,-151.0,0.000421,120]
[421684366,1778040659000,-2000.0,0.0004213,120]
[421684367,1778040659000,-2000.0,0.0004213,120]
[421684365,1778040659000,-2000.0,0.0004213,120]
[421684368,1778040659000,-2000.0,0.0004213,120]
[421684359,1778040659000,-314.097762,0.00042043,120]
[421684377,1778040659000,-352.06227604,0.00042247,2]
[421684374,1778040659000,-250.0,0.00042192,120]
[421684369,1778040659000,-2000.0,0.0004213,120]
[421684372,1778040659000,-565.52,0.00042183,2]
[421684373,1778040659000,-1560.0,0.00042192,120]
[421684376,1778040659000,-250.0,0.00042247,120]
[421684371,1778040659000,-558.1042349,0.0004214,2]
[421684370,1778040659000,-408.0,0.00042131,10]
[421684380,1778040659000,-189.47926864,0.00042268,120]
[421684362,1778040659000,-250.0,0.00042082,120]
[421684363,1778040659000,-70374.77,0.000421,7]
[421684361,1778040659000,-192.4,0.0004207,120]
[421684381,1778040659000,-27137.58,0.00042268,7]
[421684460,1778040660000,-262.686372,0.00042368,120]
[421684458,1778040660000,-262.686372,0.00042368,120]
[421684459,1778040660000,-387.503291,0.00042368,7]
[421684456,1778040660000,-1419.836767,0.00042368,120]
[421684455,1778040660000,-1419.836767,0.00042368,120]
[421684457,1778040660000,-387.503291,0.00042368,7]
[421684446,1778040660000,-734.345165,0.00042368,120]
[421684453,1778040660000,-1419.836767,0.00042368,120]
[421684452,1778040660000,-151.0,0.00042368,120]
[421684445,1778040660000,-1481.906654,0.00042368,120]
[421684444,1778040660000,-182.794341,0.00042368,30]
[421684447,1778040660000,-182.794341,0.00042368,30]
[421684454,1778040660000,-1419.836767,0.00042368,120]
[421684448,1778040660000,-734.345165,0.00042368,120]
[421684471,1778040660000,-254.415554,0.00042368,30]
[421684450,1778040660000,-151.0,0.00042368,120]
[421684451,1778040660000,-152.907321,0.00042368,120]
[421684461,1778040660000,-387.503291,0.00042368,7]
[421684462,1778040660000,-262.686372,0.00042368,120]
[421684463,1778040660000,-387.503291,0.00042368,7]
[421684468,1778040660000,-723.635431,0.00042368,120]
[421684464,1778040660000,-262.686372,0.00042368,120]
[421684466,1778040660000,-723.635431,0.00042368,120]
[421684467,1778040660000,-254.415554,0.00042368,30]
[421684469,1778040660000,-254.415554,0.00042368,30]
[421684465,1778040660000,-254.415554,0.00042368,30]
[421684470,1778040660000,-723.635431,0.00042368,120]
[421684443,1778040660000,-734.345165,0.00042368,120]
[421684449,1778040660000,-182.794341,0.00042368,30]
[421684440,1778040660000,-734.345165,0.00042368,120]
[421684413,1778040660000,-151.0,0.00042368,30]
[421684438,1778040660000,-1481.906654,0.00042368,120]
[421684472,1778040660000,-723.635431,0.00042368,120]
[421684411,1778040660000,-151.0,0.00042368,30]
[421684420,1778040660000,-878.136391,0.00042368,60]
[421684412,1778040660000,-151.0,0.00042368,30]
[421684421,1778040660000,-878.136391,0.00042368,60]
[421684414,1778040660000,-151.0,0.00042368,30]
[421684415,1778040660000,-151.0,0.00042368,30]
[421684418,1778040660000,-878.136391,0.00042368,60]
[421684419,1778040660000,-878.136391,0.00042368,60]
[421684416,1778040660000,-241.35083,0.00042368,30]
[421684417,1778040660000,-2415.6553718,0.00042368,2]
[421684423,1778040660000,-1110.321629,0.00042368,28]
[421684431,1778040660000,-151.0,0.00042368,120]
[421684422,1778040660000,-1110.321629,0.00042368,28]
[421684432,1778040660000,-151.0,0.00042368,120]
[421684426,1778040660000,-479.870062,0.00042368,120]
[421684428,1778040660000,-479.870062,0.00042368,120]
[421684433,1778040660000,-151.0,0.00042368,120]
[421684429,1778040660000,-479.870062,0.00042368,120]
[421684424,1778040660000,-1110.321629,0.00042368,28]
[421684425,1778040660000,-1110.321629,0.00042368,28]
[421684430,1778040660000,-151.0,0.00042368,120]
[421684427,1778040660000,-479.870062,0.00042368,120]
[421684434,1778040660000,-173.458264,0.00042368,120]
[421684435,1778040660000,-173.458264,0.00042368,120]
[421684441,1778040660000,-182.794341,0.00042368,30]
[421684437,1778040660000,-173.458264,0.00042368,120]
[421684439,1778040660000,-1481.906654,0.00042368,120]
[421684442,1778040660000,-1481.906654,0.00042368,120]
[421684436,1778040660000,-173.458264,0.00042368,120]
[421684482,1778040660000,-500.0,0.00042399,18]
[421684528,1778040660000,-160.0,0.00042466,120]
[421684473,1778040660000,-151.0,0.00042368,120]
[421684509,1778040660000,-151.0,0.0004245,30]
[421684510,1778040660000,-269.120346,0.0004245,120]
[421684512,1778040660000,-269.120346,0.0004245,120]
[421684515,1778040660000,-151.0,0.0004245,120]
[421684523,1778040660000,-10000.0,0.00042465,120]
[421684519,1778040660000,-500.0,0.00042452,4]
[421684514,1778040660000,-151.0,0.0004245,120]
[421684521,1778040660000,-10000.0,0.00042465,120]
[421684517,1778040660000,-274.197896,0.0004245,120]
[421684513,1778040660000,-151.0,0.0004245,120]
[421684511,1778040660000,-151.0,0.0004245,30]
[421684518,1778040660000,-151.0,0.0004245,120]
[421684522,1778040660000,-10000.0,0.00042465,120]
[421684504,1778040660000,-298.455771,0.0004245,120]
[421684520,1778040660000,-161.0,0.0004246,120]
[421684525,1778040660000,-10000.0,0.00042465,120]
[421684535,1778040660000,-205.48759847,0.00042482,30]
[421684536,1778040660000,-500.0,0.00042499,10]
[421684524,1778040660000,-10000.0,0.00042465,120]
[421684530,1778040660000,-363.45,0.00042466,120]
[421684526,1778040660000,-338.86642309,0.00042465,120]
[421684527,1778040660000,-214.0,0.00042466,2]
[421684537,1778040660000,-500.0,0.00042499,90]
[421684531,1778040660000,-250.1,0.00042466,30]
[421684534,1778040660000,-300.0,0.0004247,3]
[421684529,1778040660000,-1560.0,0.00042466,120]
[421684484,1778040660000,-500.0,0.00042399,80]
[421684533,1778040660000,-222.131232,0.0004247,30]
[421684516,1778040660000,-151.0,0.0004245,120]
[421684505,1778040660000,-269.120346,0.0004245,120]
[421684532,1778040660000,-500.0,0.00042469,3]
[421684507,1778040660000,-269.120346,0.0004245,120]
[421684506,1778040660000,-298.455771,0.0004245,120]
[421684483,1778040660000,-500.0,0.00042399,54]
[421684485,1778040660000,-160.0,0.000424,80]
[421684474,1778040660000,-151.0,0.00042368,120]
[421684481,1778040660000,-245.05,0.00042397,2]
[421684478,1778040660000,-310.0,0.00042389,97]
[421684479,1778040660000,-1047.08,0.00042397,2]
[421684480,1778040660000,-935.69,0.00042397,2]
[421684476,1778040660000,-188.433504,0.00042368,120]
[421684475,1778040660000,-151.0,0.00042368,120]
[421684477,1778040660000,-157.86811067,0.00042381,2]
[421684490,1778040660000,-367.50745211,0.00042408,120]
[421684487,1778040660000,-580.39,0.000424,90]
[421684492,1778040660000,-161.0,0.0004244,120]
[421684486,1778040660000,-160.0,0.000424,80]
[421684488,1778040660000,-336.70213556,0.00042402,2]
[421684498,1778040660000,-500.0,0.00042441,120]
[421684503,1778040660000,-298.455771,0.0004245,120]
[421684502,1778040660000,-3123.12505617,0.0004245,2]
[421684499,1778040660000,-500.0,0.00042441,120]
[421684501,1778040660000,-372.43341132,0.00042441,120]
[421684500,1778040660000,-500.0,0.00042441,120]
[421684508,1778040660000,-298.455771,0.0004245,120]
[421684497,1778040660000,-500.0,0.00042441,120]
[421684496,1778040660000,-500.0,0.00042441,120]
[421684495,1778040660000,-500.0,0.00042441,120]
[421684489,1778040660000,-243.07,0.00042407,120]
[421684491,1778040660000,-250.0,0.00042411,120]
[421684493,1778040660000,-500.0,0.00042441,120]
[421684494,1778040660000,-500.0,0.00042441,120]
[421684584,1778040661000,-156.41,0.00042517,2]
[421684576,1778040661000,-641.32900991,0.00042515,2]
[421684583,1778040661000,-156.41,0.00042517,2]
[421684581,1778040661000,-203.5328956,0.00042515,2]
[421684569,1778040661000,-156.41,0.00042515,2]
[421684575,1778040661000,-227.29539057,0.00042515,8]
[421684564,1778040661000,-232.792369,0.00042501,120]
[421684570,1778040661000,-156.41,0.00042515,2]
[421684565,1778040661000,-232.792369,0.00042501,120]
[421684578,1778040661000,-4403.39794084,0.00042515,2]
[421684582,1778040661000,-156.41,0.00042517,2]
[421684566,1778040661000,-232.792369,0.00042501,120]
[421684587,1778040661000,-500.0,0.00042517,79]
[421684574,1778040661000,-5686.34352384,0.00042515,28]
[421684579,1778040661000,-203.53289562,0.00042515,2]
[421684585,1778040661000,-156.41,0.00042517,2]
[421684580,1778040661000,-203.5328956,0.00042515,2]
[421684586,1778040661000,-156.41,0.00042517,2]
[421684589,1778040661000,-156.41,0.00042519,2]
[421684588,1778040661000,-156.43,0.00042519,2]
[421684590,1778040661000,-156.41,0.00042519,2]
[421684592,1778040661000,-156.41,0.00042519,2]
[421684594,1778040661000,-500.0,0.00042524,7]
[421684591,1778040661000,-156.41,0.00042519,2]
[421684595,1778040661000,-33722.8095842,0.0004253,2]
[421684568,1778040661000,-156.41,0.00042515,2]
[421684577,1778040661000,-5012.50772491,0.00042515,2]
[421684567,1778040661000,-151.0,0.00042501,120]
[421684561,1778040661000,-197.890149,0.00042501,120]
[421684572,1778040661000,-156.41,0.00042515,2]
[421684538,1778040661000,-500.0,0.00042499,45]
[421684540,1778040661000,-500.0,0.00042499,25]
[421684539,1778040661000,-500.0,0.00042499,73]
[421684547,1778040661000,-500.0,0.000425,45]
[421684548,1778040661000,-500.0,0.000425,45]
[421684542,1778040661000,-169.48835997,0.000425,73]
[421684543,1778040661000,-500.0,0.000425,45]
[421684549,1778040661000,-500.0,0.000425,45]
[421684541,1778040661000,-150.0,0.000425,18]
[421684544,1778040661000,-500.0,0.000425,45]
[421684545,1778040661000,-160.0,0.000425,81]
[421684546,1778040661000,-150.0,0.000425,55]
[421684563,1778040661000,-232.792369,0.00042501,120]
[421684551,1778040661000,-500.0,0.000425,45]
[421684552,1778040661000,-500.0,0.000425,45]
[421684555,1778040661000,-500.0,0.000425,90]
[421684557,1778040661000,-151135.1471347,0.00042501,2]
[421684554,1778040661000,-405.8911,0.000425,120]
[421684556,1778040661000,-217.66576756,0.000425,120]
[421684558,1778040661000,-151.0,0.00042501,120]
[421684560,1778040661000,-197.890149,0.00042501,120]
[421684553,1778040661000,-500.0,0.000425,45]
[421684559,1778040661000,-197.890149,0.00042501,120]
[421684562,1778040661000,-197.890149,0.00042501,120]
[421684571,1778040661000,-156.41,0.00042515,2]
[421684573,1778040661000,-1747.64701049,0.00042515,7]
[421684550,1778040661000,-500.0,0.000425,120]
[421684593,1778040661000,-500.0,0.00042523,70]
[421684596,1778040661000,-38052.8288046,0.00042533,2]
[421684597,1778040661000,-5349.3994049,0.00042534,2]
[421684629,1778040661000,-701.0,0.00042558,120]
[421684631,1778040661000,-701.0,0.00042558,120]
[421684627,1778040661000,-701.0,0.00042558,120]
[421684628,1778040661000,-701.0,0.00042558,120]
[421684634,1778040661000,-945.0,0.00042558,120]
[421684633,1778040661000,-701.0,0.00042558,120]
[421684642,1778040661000,-152.207717,0.00042568,120]
[421684643,1778040661000,-362.0,0.00042568,120]
[421684644,1778040661000,-1248.48009278,0.00042568,30]
[421684635,1778040661000,-500.0,0.00042558,30]
[421684636,1778040661000,-500.0,0.00042558,30]
[421684637,1778040661000,-700.0,0.00042564,30]
[421684622,1778040661000,-466.0,0.00042558,120]
[421684638,1778040661000,-104080.34183508,0.00042567,7]
[421684640,1778040661000,-217.54451636,0.00042568,120]
[421684645,1778040661000,-1248.48009278,0.00042568,30]
[421684647,1778040661000,-1193.6123459,0.00042571,2]
[421684648,1778040661000,-384.8169103,0.00042571,2]
[421684649,1778040661000,-8490.7337852,0.00042574,2]
[421684646,1778040661000,-300.0,0.0004257,3]
[421684650,1778040661000,-938.47,0.00042574,2]
[421684652,1778040661000,-150.0,0.00042595,2]
[421684651,1778040661000,-777.8,0.00042592,120]
[421684653,1778040661000,-1900.0,0.000426,15]
[421684654,1778040661000,-612.99376329,0.000426,2]
[421684599,1778040661000,-500.0,0.00042545,9]
[421684639,1778040661000,-215.48883445,0.00042568,120]
[421684630,1778040661000,-701.0,0.00042558,120]
[421684641,1778040661000,-215.70311568,0.00042568,120]
[421684626,1778040661000,-701.0,0.00042558,120]
[421684632,1778040661000,-701.0,0.00042558,120]
[421684600,1778040661000,-31287.68,0.00042546,120]
[421684601,1778040661000,-659.08,0.00042546,120]
[421684602,1778040661000,-4718.89,0.00042546,120]
[421684603,1778040661000,-500.58,0.00042546,120]
[421684607,1778040661000,-150.0,0.00042553,2]
[421684604,1778040661000,-3207.88,0.00042546,120]
[421684606,1778040661000,-1000.0,0.0004255,120]
[421684605,1778040661000,-4000.0,0.00042548,60]
[421684609,1778040661000,-2000.0,0.00042554,120]
[421684608,1778040661000,-500.0,0.00042553,2]
[421684610,1778040661000,-500.0,0.00042556,60]
[421684619,1778040661000,-500.0,0.00042557,45]
[421684598,1778040661000,-1724.6297412,0.00042534,2]
[421684624,1778040661000,-386.37185823,0.00042558,30]
[421684625,1778040661000,-187.037,0.00042558,120]
[421684623,1778040661000,-500.0,0.00042558,120]
[421684621,1778040661000,-500.0,0.00042557,30]
[421684611,1778040661000,-500.0,0.00042556,120]
[421684617,1778040661000,-500.0,0.00042556,48]
[421684618,1778040661000,-277.425565,0.00042557,79]
[421684615,1778040661000,-500.0,0.00042556,58]
[421684614,1778040661000,-500.0,0.00042556,57]
[421684612,1778040661000,-500.0,0.00042556,28]
[421684613,1778040661000,-500.0,0.00042556,56]
[421684620,1778040661000,-207.81792302,0.00042557,120]
[421684616,1778040661000,-500.0,0.00042556,59]
[421684700,1778040662000,-197.890149,0.00042615,120]
[421684696,1778040662000,-197.890149,0.00042615,120]
[421684694,1778040662000,-197.890149,0.00042615,120]
[421684697,1778040662000,-197.890149,0.00042615,120]
[421684684,1778040662000,-314.097762,0.00042615,120]
[421684692,1778040662000,-314.097772,0.00042615,120]
[421684687,1778040662000,-314.097762,0.00042615,120]
[421684688,1778040662000,-314.097762,0.00042615,120]
[421684689,1778040662000,-314.097762,0.00042615,120]
[421684685,1778040662000,-314.097762,0.00042615,120]
[421684698,1778040662000,-197.890149,0.00042615,120]
[421684686,1778040662000,-314.097762,0.00042615,120]
[421684683,1778040662000,-314.097762,0.00042615,120]
[421684699,1778040662000,-197.890149,0.00042615,120]
[421684704,1778040662000,-197.890149,0.00042615,120]
[421684695,1778040662000,-197.890149,0.00042615,120]
[421684702,1778040662000,-197.890149,0.00042615,120]
[421684703,1778040662000,-197.890149,0.00042615,120]
[421684706,1778040662000,-500.0,0.00042615,3]
[421684707,1778040662000,-500.0,0.00042615,3]
[421684705,1778040662000,-197.890156,0.00042615,120]
[421684708,1778040662000,-500.0,0.00042615,3]
[421684709,1778040662000,-500.0,0.00042615,3]
[421684711,1778040662000,-232.792369,0.00042615,120]
[421684710,1778040662000,-195.44207369,0.00042615,3]
[421684712,1778040662000,-232.792369,0.00042615,120]
[421684713,1778040662000,-232.792369,0.00042615,120]
[421684701,1778040662000,-197.890149,0.00042615,120]
[421684691,1778040662000,-314.097762,0.00042615,120]
[421684655,1778040662000,-612.99376329,0.000426,2]
[421684693,1778040662000,-152.381078,0.00042615,120]
[421684656,1778040662000,-151.0,0.00042607,120]
[421684658,1778040662000,-171.98767098,0.00042608,120]
[421684657,1778040662000,-151.0,0.00042607,120]
[421684660,1778040662000,-151.0,0.00042608,120]
[421684659,1778040662000,-151.0,0.00042608,120]
[421684661,1778040662000,-3227.18603934,0.00042611,120]
[421684669,1778040662000,-404.04256267,0.00042615,2]
[421684668,1778040662000,-185.97729665,0.00042611,2]
[421684665,1778040662000,-254.81702264,0.00042611,120]
[421684662,1778040662000,-1656.06,0.00042611,120]
[421684664,1778040662000,-175.4583049,0.00042611,120]
[421684667,1778040662000,-494.48575912,0.00042611,120]
[421684666,1778040662000,-1823.76239579,0.00042611,120]
[421684663,1778040662000,-169.16180632,0.00042611,120]
[421684670,1778040662000,-177.0,0.00042615,120]
[421684673,1778040662000,-151.0,0.00042615,120]
[421684672,1778040662000,-359.0,0.00042615,120]
[421684671,1778040662000,-277.0,0.00042615,120]
[421684680,1778040662000,-314.097762,0.00042615,120]
[421684677,1778040662000,-314.097762,0.00042615,120]
[421684676,1778040662000,-151.0,0.00042615,120]
[421684674,1778040662000,-151.0,0.00042615,120]
[421684679,1778040662000,-314.097762,0.00042615,120]
[421684675,1778040662000,-151.0,0.00042615,120]
[421684678,1778040662000,-314.097762,0.00042615,120]
[421684682,1778040662000,-314.097762,0.00042615,120]
[421684690,1778040662000,-314.097762,0.00042615,120]
[421684681,1778040662000,-314.097762,0.00042615,120]
[421684717,1778040662000,-232.792369,0.00042615,120]
[421684714,1778040662000,-232.792369,0.00042615,120]
[421684716,1778040662000,-232.792369,0.00042615,120]
[421684753,1778040662000,-151.0,0.00042615,120]
[421684748,1778040662000,-269.120346,0.00042615,120]
[421684750,1778040662000,-269.120346,0.00042615,120]
[421684751,1778040662000,-269.120346,0.00042615,120]
[421684749,1778040662000,-216.481484,0.00042615,30]
[421684752,1778040662000,-269.120343,0.00042615,120]
[421684757,1778040662000,-151.0,0.00042615,120]
[421684759,1778040662000,-151.0,0.00042615,120]
[421684758,1778040662000,-151.0,0.00042615,120]
[421684760,1778040662000,-151.0,0.00042615,120]
[421684756,1778040662000,-151.0,0.00042615,120]
[421684761,1778040662000,-151.0,0.00042615,120]
[421684762,1778040662000,-151.0,0.00042615,120]
[421684766,1778040662000,-218.786615,0.00042615,120]
[421684767,1778040662000,-250.0,0.00042615,30]
[421684765,1778040662000,-151.0,0.00042615,120]
[421684764,1778040662000,-151.0,0.00042615,120]
[421684763,1778040662000,-151.0,0.00042615,120]
[421684769,1778040662000,-250.0,0.00042615,30]
[421684776,1778040662000,-878.136391,0.00042615,60]
[421684772,1778040662000,-878.136391,0.00042615,60]
[421684771,1778040662000,-878.136391,0.00042615,60]
[421684773,1778040662000,-878.136391,0.00042615,60]
[421684770,1778040662000,-878.136391,0.00042615,60]
[421684768,1778040662000,-250.0,0.00042615,30]
[421684774,1778040662000,-878.136391,0.00042615,60]
[421684715,1778040662000,-232.792369,0.00042615,120]
[421684744,1778040662000,-298.455771,0.00042615,120]
[421684754,1778040662000,-151.0,0.00042615,120]
[421684775,1778040662000,-878.136391,0.00042615,60]
[421684747,1778040662000,-298.45577,0.00042615,120]
[421684718,1778040662000,-232.792369,0.00042615,120]
[421684720,1778040662000,-232.792369,0.00042615,120]
[421684730,1778040662000,-298.455771,0.00042615,120]
[421684722,1778040662000,-232.792364,0.00042615,120]
[421684726,1778040662000,-298.455771,0.00042615,120]
[421684721,1778040662000,-232.792369,0.00042615,120]
[421684725,1778040662000,-298.455771,0.00042615,120]
[421684724,1778040662000,-215.50474,0.00042615,120]
[421684723,1778040662000,-151.0,0.00042615,120]
[421684728,1778040662000,-298.455771,0.00042615,120]
[421684727,1778040662000,-298.455771,0.00042615,120]
[421684729,1778040662000,-269.120346,0.00042615,120]
[421684731,1778040662000,-269.120346,0.00042615,120]
[421684719,1778040662000,-232.792369,0.00042615,120]
[421684738,1778040662000,-298.455771,0.00042615,120]
[421684745,1778040662000,-269.120346,0.00042615,120]
[421684732,1778040662000,-298.455771,0.00042615,120]
[421684755,1778040662000,-151.0,0.00042615,120]
[421684734,1778040662000,-298.455771,0.00042615,120]
[421684736,1778040662000,-298.455771,0.00042615,120]
[421684740,1778040662000,-151.0,0.00042615,30]
[421684733,1778040662000,-269.120346,0.00042615,120]
[421684746,1778040662000,-151.0,0.00042615,30]
[421684739,1778040662000,-269.120346,0.00042615,120]
[421684742,1778040662000,-269.120346,0.00042615,120]
[421684741,1778040662000,-298.455771,0.00042615,120]
[421684735,1778040662000,-269.120346,0.00042615,120]
[421684743,1778040662000,-151.0,0.00042615,30]
[421684737,1778040662000,-269.120346,0.00042615,120]
[421684820,1778040663000,-173.458264,0.00042615,120]
[421684813,1778040663000,-151.0,0.00042615,120]
[421684810,1778040663000,-151.0,0.00042615,120]
[421684815,1778040663000,-173.458264,0.00042615,120]
[421684814,1778040663000,-173.458264,0.00042615,120]
[421684805,1778040663000,-479.870058,0.00042615,120]
[421684809,1778040663000,-207.24708,0.00042615,120]
[421684817,1778040663000,-173.458264,0.00042615,120]
[421684816,1778040663000,-173.458264,0.00042615,120]
[421684821,1778040663000,-173.458264,0.00042615,120]
[421684808,1778040663000,-151.0,0.00042615,120]